bitfinex-derivatives/quotes_BTCF0:USTF0_20241019
["timestamp","ask_amount","ask_price","bid_price","bid_amount"]
[1729341151904,0.065954,68225.0,68224.0,1.13352079]
[1729341153104,0.065954,68225.0,68224.0,1.22356642]
[1729341153403,0.065954,68225.0,68224.0,1.44716095]
[1729341155607,0.065954,68225.0,68224.0,1.32811362]
[1729341156300,0.065954,68225.0,68224.0,1.44531137]
[1729341157799,0.065954,68225.0,68224.0,1.32811362]
[1729341158301,0.065954,68225.0,68224.0,1.32791362]
[1729341160709,0.065954,68225.0,68224.0,1.4468463]
[1729341160904,0.08607408,68225.0,68224.0,1.4468463]
[1729341161104,0.065954,68225.0,68224.0,1.4468463]
[1729341161304,0.065954,68225.0,68224.0,1.32791362]
[1729341164808,0.065954,68225.0,68224.0,0.60631362]
[1729341165012,0.065954,68225.0,68224.0,1.32791362]
[1729341165212,0.065954,68225.0,68224.0,0.60631362]
[1729341165517,0.065954,68225.0,68224.0,1.32791362]
[1729341166007,0.065954,68225.0,68224.0,0.60631362]
[1729341166208,0.065954,68225.0,68224.0,1.32791362]
[1729341168213,0.065954,68225.0,68224.0,1.22336642]
[1729341169103,0.065954,68225.0,68224.0,1.22328767]
[1729341169520,0.065954,68225.0,68224.0,0.50168767]
[1729341169706,0.065954,68225.0,68224.0,1.22328767]
[1729341170720,0.065954,68225.0,68224.0,1.13332079]
[1729341172709,0.065954,68225.0,68224.0,0.41172079]
[1729341173019,0.065954,68225.0,68224.0,1.13332079]
[1729341176119,0.065954,68225.0,68224.0,1.3277602]
[1729341177213,0.065954,68225.0,68224.0,0.6061602]
[1729341177424,0.065954,68225.0,68224.0,1.3277602]
[1729341178617,0.0644,68237.0,68224.0,1.22329543]
[1729341178809,0.15046308,68237.0,68236.0,0.3608]
[1729341179013,0.15046308,68237.0,68236.0,0.45077464]
[1729341182117,0.15046308,68237.0,68236.0,0.47698204]
[1729341182318,0.11886308,68237.0,68236.0,0.83778204]
[1729341183315,0.11886308,68237.0,68236.0,0.7478074]
[1729341184420,0.11886308,68237.0,68236.0,0.96650639]
[1729341186024,0.06594,68241.0,68240.0,0.06594]
[1729341186232,0.04618,68241.0,68240.0,0.06594]
[1729341186429,0.04618,68241.0,68240.0,0.5186879]
[1729341186725,0.04618,68241.0,68240.0,0.45286304]
[1729341187121,0.04618,68241.0,68240.0,0.5259377]
[1729341187429,0.04618,68241.0,68240.0,0.52591376]
[1729341187726,0.04618,68241.0,68240.0,0.45286304]
[1729341188124,0.065936,68244.0,68242.0,0.065937]
[1729341188326,0.065936,68244.0,68243.0,0.3608]
[1729341188634,0.08605608,68244.0,68243.0,0.57966091]
[1729341189827,0.08605608,68244.0,68243.0,0.94046091]
[1729341190623,0.08605608,68244.0,68243.0,0.99886112]
[1729341191132,0.08605608,68244.0,68243.0,1.06479812]
[1729341191325,0.08605608,68244.0,68243.0,1.00639791]
[1729341191827,0.08605608,68244.0,68243.0,1.09606033]
[1729341192826,0.08605608,68244.0,68243.0,1.00639791]
[1729341193128,0.08605608,68244.0,68243.0,1.09606103]
[1729341194124,0.08605608,68244.0,68243.0,1.12276078]
[1729341194627,0.0658,68261.0,68251.0,0.065929]
[1729341194628,0.03619949,68260.0,68251.0,0.065929]
[1729341194933,0.03619949,68260.0,68259.0,0.3608]
[1729341194934,0.065921,68260.0,68259.0,0.3608]
[1729341198736,0.065921,68260.0,68259.0,0.3875683]
[1729341204937,0.065921,68260.0,68259.0,0.52642513]
[1729341205933,0.065921,68260.0,68259.0,0.4534903]
[1729341206537,0.0658,68261.0,68259.0,0.60650106]
[1729341206837,0.0658,68261.0,68260.0,0.065921]
[1729341208531,0.13172,68261.0,68260.0,0.065921]
[1729341209536,0.13172,68261.0,68260.0,0.12424718]
[1729341209843,0.13172,68261.0,68260.0,0.065921]
[1729341210642,0.09892,68261.0,68260.0,0.065921]
[1729341210844,0.06592,68261.0,68260.0,0.065921]
[1729341212346,0.06592,68261.0,68260.0,0.28519307]
[1729341212532,0.06592,68261.0,68260.0,0.45084889]
[1729341213540,0.06592,68261.0,68260.0,0.53966084]
[1729341214544,0.065915,68266.0,68265.0,0.065915]
[1729341214749,0.065915,68266.0,68265.0,0.51425762]
[1729341214945,0.065915,68266.0,68265.0,0.64680153]
[1729341215842,0.065915,68266.0,68265.0,0.81314372]
[1729341219449,0.065915,68266.0,68265.0,0.90185913]
[1729341219641,0.065915,68266.0,68265.0,0.90186048]
[1729341221443,0.065915,68266.0,68265.0,0.81314372]
[1729341221847,0.065915,68266.0,68265.0,0.58088653]
[1729341222056,0.065915,68266.0,68265.0,0.3608]
[1729341222256,0.065915,68266.0,68265.0,0.41917766]
[1729341223051,0.665915,68266.0,68265.0,0.3608]
[1729341223354,0.065919,68262.0,68260.0,0.0002]
[1729341223553,0.0002,68261.0,68260.0,0.05857766]
[1729341223851,0.0002,68261.0,68260.0,0.0002]
[1729341224152,0.06612,68261.0,68260.0,0.0002]
[1729341224538,0.06612,68261.0,68260.0,0.05857766]
[1729341225553,0.06612,68261.0,68260.0,0.0002]
[1729341228353,0.06612,68261.0,68260.0,0.08774467]
[1729341228650,0.06612,68261.0,68260.0,0.15375563]
[1729341228852,0.06612,68261.0,68260.0,0.066121]
[1729341229551,0.06612,68261.0,68260.0,0.15650293]
[1729341232650,0.06612,68261.0,68260.0,0.51730293]
[1729341233657,0.06612,68261.0,68260.0,0.51703473]
[1729341238361,0.06612,68261.0,68260.0,0.60718746]
[1729341238565,0.06612,68261.0,68260.0,0.51707373]
[1729341239367,0.06612,68261.0,68260.0,0.15627373]
[1729341239556,0.06612,68261.0,68260.0,0.51707373]
[1729341241668,0.06612,68261.0,68260.0,0.51706943]
[1729341242961,0.06612,68261.0,68260.0,0.15626943]
[1729341243160,0.06612,68261.0,68260.0,0.51706943]
[1729341246568,0.06612,68261.0,68260.0,0.45128244]
[1729341253387,0.06612,68261.0,68260.0,0.09048244]
[1729341253689,0.06612,68261.0,68260.0,0.45128244]
[1729341260787,0.06612,68261.0,68260.0,0.45139974]
[1729341263195,0.06612,68261.0,68260.0,0.55394721]
[1729341263996,0.06612,68261.0,68260.0,0.45139974]
[1729341270499,0.06612,68261.0,68260.0,0.09059974]
[1729341270703,0.06612,68261.0,68260.0,0.45139974]
[1729341273498,0.06612,68261.0,68260.0,0.361]
[1729341275101,0.06612,68261.0,68260.0,0.0002]
[1729341275291,0.06612,68261.0,68260.0,0.361]
[1729341279693,0.06612,68261.0,68260.0,0.44868001]
[1729341280702,0.06612,68261.0,68260.0,0.361]
[1729341281599,0.06612,68261.0,68260.0,0.65960307]
[1729341283098,0.06612,68261.0,68260.0,0.5570556]
[1729341284599,0.06612,68261.0,68260.0,0.55706098]
[1729341285599,0.06612,68261.0,68260.0,0.451725]
[1729341288109,0.06612,68261.0,68260.0,0.090925]
[1729341288309,0.06612,68261.0,68260.0,0.451725]
[1729341289411,0.06612,68261.0,68260.0,0.361]
[1729341290707,0.06612,68261.0,68260.0,0.45182455]
[1729341291108,0.06612,68261.0,68260.0,0.361]
[1729341297114,0.06612,68261.0,68260.0,0.0002]
[1729341297317,0.06612,68261.0,68260.0,0.361]
[1729341305120,0.06612,68261.0,68260.0,0.0002]
[1729341305321,0.09203833,68261.0,68260.0,0.0002]
[1729341307417,0.09203833,68261.0,68260.0,0.08787474]
[1729341307923,0.06612,68261.0,68260.0,0.08787474]
[1729341308128,0.06612,68261.0,68260.0,0.0002]
[1729341311422,0.06612,68261.0,68260.0,0.08786862]
[1729341313315,0.06612,68261.0,68260.0,0.0002]
[1729341314316,0.06612,68261.0,68260.0,0.08787659]
[1729341315327,0.06612,68261.0,68260.0,0.0002]
[1729341317424,0.06612,68261.0,68260.0,0.09120606]
[1729341318428,0.06612,68261.0,68260.0,0.09131797]
[1729341320235,0.06612,68261.0,68260.0,0.45211797]
[1729341321632,0.06612,68261.0,68260.0,0.09131797]
[1729341321834,0.06612,68261.0,68260.0,0.45211797]
[1729341322726,0.06612,68261.0,68260.0,0.09131797]
[1729341323033,0.06612,68261.0,68260.0,0.45220411]
[1729341325131,0.06612,68261.0,68260.0,0.09140411]
[1729341325331,0.06612,68261.0,68260.0,0.45220411]
[1729341325740,0.06612,68261.0,68260.0,0.09140411]
[1729341326037,0.06612,68261.0,68260.0,0.45220411]
[1729341326429,0.06612,68261.0,68260.0,0.0002]
[1729341326636,0.06612,68261.0,68260.0,0.361]
[1729341329729,0.06612,68261.0,68260.0,0.0002]
[1729341329930,0.06612,68261.0,68260.0,0.361]
[1729341330835,0.06612,68261.0,68260.0,0.0002]
[1729341331036,0.06612,68261.0,68260.0,0.361]
[1729341332336,0.06612,68261.0,68260.0,0.0002]
[1729341332538,0.06612,68261.0,68260.0,0.361]
[1729341333136,0.06612,68261.0,68260.0,0.43407007]
[1729341333338,0.06612,68261.0,68260.0,0.62032058]
[1729341333547,0.06612,68261.0,68260.0,0.72603769]
[1729341333738,0.06612,68261.0,68260.0,0.51797441]
[1729341334437,0.06612,68261.0,68260.0,0.62362283]
[1729341335632,0.06612,68261.0,68260.0,0.62342283]
[1729341338445,0.06612,68261.0,68260.0,0.61999761]
[1729341338647,0.06612,68261.0,68260.0,0.51777441]
[1729341340839,0.06612,68261.0,68260.0,0.45185341]
[1729341343549,0.06612,68261.0,68260.0,0.51777441]
[1729341344144,0.06592,68261.0,68260.0,0.51777441]
[1729341345650,0.06592,68261.0,68260.0,0.15697441]
[1729341345854,0.06592,68261.0,68260.0,0.51777441]
[1729341347154,0.06592,68261.0,68260.0,0.51774219]
[1729341348553,0.06592,68261.0,68260.0,0.426721]
[1729341355556,0.06592,68261.0,68260.0,0.065921]
[1729341355861,0.06592,68261.0,68260.0,0.426721]
[1729341356552,0.06592,68261.0,68260.0,0.51763102]
[1729341359658,0.06592,68261.0,68260.0,0.51768984]
[1729341360761,0.06592,68261.0,68260.0,0.426721]
[1729341360965,0.06592,68261.0,68260.0,0.51768817]
[1729341362667,0.06592,68261.0,68260.0,0.61991137]
[1729341363468,0.06592,68261.0,68260.0,0.426721]
[1729341367264,0.06592,68261.0,68260.0,0.065921]
[1729341367471,0.06592,68261.0,68260.0,0.426721]
[1729341369971,0.06592,68261.0,68260.0,0.065921]
[1729341370175,0.06592,68261.0,68260.0,0.426721]
[1729341370562,0.06592,68261.0,68260.0,0.50467275]
[1729341371569,0.06592,68261.0,68260.0,0.59758963]
[1729341374470,0.06592,68261.0,68260.0,0.70534516]
[1729341375471,0.06592,68261.0,68260.0,0.82231221]
[1729341376171,0.06592,68261.0,68260.0,0.70534516]
[1729341378675,0.06592,68261.0,68260.0,0.50467275]
[1729341380078,0.06592,68261.0,68260.0,0.59759649]
[1729341381187,0.06592,68261.0,68260.0,0.50467275]
[1729341383673,0.06592,68261.0,68260.0,0.50470848]
[1729341384194,0.0303,68274.0,68260.0,0.65815892]
[1729341384489,0.065908,68273.0,68272.0,0.3608]
[1729341386481,0.065908,68273.0,68272.0,0.53126928]
[1729341387688,0.065908,68273.0,68272.0,0.55826534]
[1729341392590,0.065908,68273.0,68272.0,0.19746534]
[1729341392786,0.065908,68273.0,68272.0,0.55826534]
[1729341393487,0.065908,68273.0,68272.0,0.38779606]
[1729341399305,0.065908,68273.0,68272.0,0.02699606]
[1729341399600,0.065908,68273.0,68272.0,0.3608]
[1729341401612,0.065908,68273.0,68272.0,0.53124811]
[1729341410420,0.065908,68273.0,68272.0,0.53147899]
[1729341411821,0.065908,68273.0,68272.0,0.45362307]
[1729341412012,0.065908,68273.0,68272.0,0.53149727]
[1729341416622,0.065908,68273.0,68272.0,0.43859405]
[1729341418330,0.065908,68273.0,68272.0,0.51152324]
[1729341418628,0.065908,68273.0,68272.0,0.43372919]
[1729341421118,0.065908,68273.0,68272.0,0.07292919]
[1729341421322,0.065908,68273.0,68272.0,0.43372919]
[1729341422734,0.065908,68273.0,68272.0,0.07292919]
[1729341422935,0.065908,68273.0,68272.0,0.43372919]
[1729341423732,0.065908,68273.0,68272.0,0.17082797]
[1729341423929,0.065908,68273.0,68272.0,0.53162797]
[1729341424828,0.065908,68273.0,68272.0,0.53163258]
[1729341426637,0.065908,68273.0,68272.0,0.43873593]
[1729341427028,0.065908,68273.0,68272.0,0.53212208]
[1729341428534,0.065908,68273.0,68272.0,0.43873593]
[1729341428734,0.065908,68273.0,68272.0,0.5321036]
[1729341429637,0.426691,68291.0,68272.0,0.43873593]
[1729341429834,0.426691,68291.0,68284.0,0.3608]
[1729341429835,0.065896,68285.0,68284.0,0.3608]
[1729341430135,0.065896,68285.0,68284.0,0.56451905]
[1729341430440,0.065896,68285.0,68284.0,0.47183593]
[1729341432737,0.065896,68285.0,68284.0,0.3939]
[1729341433540,0.065896,68285.0,68284.0,0.48127782]
[1729341434236,0.065896,68285.0,68284.0,0.50761029]
[1729341435739,0.065896,68285.0,68284.0,0.42023247]
[1729341438542,0.065896,68285.0,68284.0,0.50756863]
[1729341438743,0.065896,68285.0,68284.0,0.42023247]
[1729341446250,0.065891,68291.0,68286.0,0.065896]
[1729341446461,0.0952,68307.0,68286.0,0.065896]
[1729341446752,0.065895,68287.0,68286.0,0.065896]
[1729341447744,0.065895,68287.0,68286.0,0.15318744]
[1729341448854,0.065895,68287.0,68286.0,0.51398744]
[1729341449252,0.043855,68287.0,68286.0,0.51398744]
[1729341449449,0.043855,68287.0,68286.0,0.426696]
[1729341449654,0.043855,68287.0,68286.0,0.51398744]
[1729341449855,0.02652498,68299.0,68286.0,0.44809144]
[1729341450055,0.065884,68298.0,68297.0,0.05818591]
[1729341450352,0.426682,68300.0,68293.0,0.0002]
[1729341450557,0.066088,68294.0,68293.0,0.0002]
[1729341450757,0.066088,68294.0,68293.0,0.07293238]
[1729341453060,0.066088,68294.0,68293.0,0.0002]
[1729341481699,0.066088,68294.0,68293.0,0.09251972]
[1729341481894,0.066088,68294.0,68293.0,0.0002]
[1729341482396,0.066088,68294.0,68293.0,0.09252366]
[1729341482997,0.066088,68294.0,68293.0,0.0002]
[1729341485796,0.065889,68293.0,68284.0,0.3939]
[1729341485998,0.066096,68285.0,68284.0,0.3939]
[1729341486701,0.066096,68285.0,68284.0,0.41999991]
[1729341489699,0.066096,68285.0,68284.0,0.38689991]
[1729341489899,0.666096,68285.0,68284.0,0.02609991]
[1729341490210,0.065898,68283.0,68282.0,0.0002]
[1729341490404,0.426698,68283.0,68282.0,0.02660052]
[1729341490709,0.426898,68283.0,68282.0,0.0002]
[1729341491213,0.426898,68283.0,68272.0,0.3608]
[1729341491214,0.065908,68273.0,68272.0,0.3608]
[1729341491407,0.066108,68273.0,68272.0,0.3608]
[1729341491608,0.066108,68273.0,68272.0,0.43909175]
[1729341492309,0.066108,68273.0,68272.0,0.55288488]
[1729341492504,0.066108,68273.0,68272.0,0.55270999]
[1729341493200,0.066108,68273.0,68272.0,0.46540374]
[1729341495714,0.066108,68273.0,68272.0,0.07829175]
[1729341498316,0.0002,68273.0,68271.0,0.09897032]
[1729341498612,0.066109,68272.0,68271.0,0.09897032]
[1729341498813,0.066109,68272.0,68271.0,0.17726141]
[1729341499214,0.066109,68272.0,68271.0,0.17725714]
[1729341499411,0.066109,68272.0,68270.0,0.3608]
[1729341499412,0.06591,68271.0,68270.0,0.3608]
[1729341499613,0.06611,68271.0,68270.0,0.3608]
[1729341501417,0.06611,68271.0,68270.0,0.41893942]
[1729341501617,0.06611,68271.0,68270.0,0.05813942]
[1729341503410,0.065911,68270.0,68269.0,0.08436576]
[1729341503713,0.065911,68270.0,68269.0,0.05813942]
[1729341503917,0.13333754,68270.0,68269.0,0.16133942]
[1729341504216,0.13333754,68270.0,68269.0,0.1032]
[1729341504422,0.13333754,68270.0,68269.0,0.16134647]
[1729341506713,0.13333754,68270.0,68269.0,0.1032]
[1729341512217,0.49413754,68270.0,68269.0,0.1032]
[1729341513819,0.49413754,68270.0,68269.0,0.14681533]
[1729341514222,0.49413754,68270.0,68269.0,0.1032]
[1729341515525,0.49413754,68270.0,68269.0,0.16134647]
[1729341517325,0.49413754,68270.0,68269.0,0.1032]
[1729341517718,1.09413754,68270.0,68269.0,0.0632518]
[1729341517917,1.12563754,68270.0,68269.0,0.12157001]
[1729341518321,1.56507754,68270.0,68269.0,0.12157001]
[1729341519221,1.12563754,68270.0,68269.0,0.12157001]
[1729341519417,1.12563754,68270.0,68269.0,0.0632518]
[1729341520924,1.56507754,68270.0,68269.0,0.0632518]
[1729341523231,1.12563754,68270.0,68269.0,0.0632518]
[1729341525922,2.62563754,68270.0,68269.0,0.12162774]
[1729341526120,2.62563754,68270.0,68269.0,0.0632518]
[1729341526827,3.06507754,68270.0,68269.0,0.0632518]
[1729341528837,3.06507754,68270.0,68269.0,0.10704819]
[1729341529535,3.06507754,68270.0,68269.0,0.0632518]
[1729341531039,1.56507754,68270.0,68269.0,0.0632518]
[1729341536441,1.20427754,68270.0,68269.0,0.0632518]
[1729341536736,1.56507754,68270.0,68269.0,0.0632518]
[1729341536937,1.20427754,68270.0,68269.0,0.0632518]
[1729341537136,1.56507754,68270.0,68269.0,0.0632518]
[1729341537539,1.56507754,68270.0,68269.0,8e-07]
[1729341537737,1.12563754,68270.0,68264.0,0.05838201]
[1729341537938,0.426716,68265.0,68264.0,1e-08]
[1729341538241,0.06592,68261.0,68260.0,0.0305]
[1729341538436,0.06692,68261.0,68260.0,0.0305]
[1729341540037,1.56692,68261.0,68260.0,0.0305]
[1729341541434,1.92772,68261.0,68260.0,0.0305]
[1729341541842,1.56692,68261.0,68260.0,0.0305]
[1729341542142,1.92772,68261.0,68260.0,0.0305]
[1729341542540,1.56692,68261.0,68260.0,0.0305]
[1729341542748,1.92772,68261.0,68260.0,0.0305]
[1729341542940,1.95457679,68261.0,68260.0,0.0305]
[1729341547141,1.59377679,68261.0,68260.0,0.0305]
[1729341547337,1.95457679,68261.0,68260.0,0.0305]
[1729341548044,1.59377679,68261.0,68260.0,0.0305]
[1729341548242,1.95457679,68261.0,68260.0,0.0305]
[1729341559177,2.01057763,68261.0,68260.0,0.00777387]
[1729341560073,2.01055906,68261.0,68260.0,0.00777387]
[1729341566882,2.01055906,68261.0,68256.0,0.0657]
[1729341567082,0.066124,68257.0,68256.0,0.0657]
[1729341567383,0.066124,68257.0,68256.0,0.21752428]
[1729341568079,0.066124,68257.0,68256.0,0.13839753]
[1729341568275,0.066124,68257.0,68256.0,0.21752022]
[1729341569475,0.066124,68257.0,68256.0,0.21751511]
[1729341569677,0.066124,68257.0,68256.0,0.13839753]
[1729341570582,0.426924,68257.0,68256.0,0.13839753]
[1729341571985,0.426924,68257.0,68256.0,0.0657]
[1729341574080,0.48267767,68257.0,68256.0,0.0657]
[1729341574281,0.48267765,68257.0,68256.0,0.0657]
[1729341574987,0.12187765,68257.0,68256.0,0.0657]
[1729341575186,0.48267765,68257.0,68256.0,0.0657]
[1729341577672,0.48267765,68257.0,68256.0,0.0333]
[1729341577873,0.48267765,68257.0,68249.0,0.06006502]
[1729341577874,0.06593,68250.0,68249.0,0.06006502]
[1729341578080,0.06613,68250.0,68249.0,0.06006502]
[1729341582095,0.06613,68250.0,68249.0,0.13931944]
[1729341584994,0.06613,68250.0,68249.0,0.2339142]
[1729341586488,0.06613,68250.0,68249.0,0.13931944]
[1729341588691,0.06613,68250.0,68249.0,0.13940769]
[1729341593487,0.06613,68250.0,68249.0,0.13939357]
[1729341594295,0.06613,68250.0,68249.0,0.23379046]
[1729341596000,0.06613,68250.0,68249.0,0.59459046]
[1729341597008,0.06613,68250.0,68249.0,0.42086502]
[1729341598602,0.12186003,68250.0,68249.0,0.42086502]
[1729341599200,0.06613,68250.0,68249.0,0.42086502]
[1729341600303,0.06613,68250.0,68249.0,0.06006502]
[1729341600704,0.12182499,68250.0,68249.0,0.06006502]
[1729341601809,0.12182504,68250.0,68249.0,0.06006502]
[1729341602508,0.12180726,68250.0,68249.0,0.06006502]
[1729341602904,0.06613,68250.0,68249.0,0.06006502]
[1729341604007,0.06613,68250.0,68249.0,0.13934026]
[1729341604911,0.06613,68250.0,68249.0,0.22699529]
[1729341606308,0.06613,68250.0,68249.0,0.22699934]
[1729341608920,0.06613,68250.0,68249.0,0.13934431]
[1729341611014,0.06613,68250.0,68249.0,0.13962961]
[1729341611621,0.06613,68250.0,68249.0,0.22728464]
[1729341612124,0.06613,68250.0,68249.0,0.23446884]
[1729341613128,0.06613,68250.0,68249.0,0.13962961]
[1729341613432,0.06613,68250.0,68249.0,0.23451305]
[1729341613727,0.06613,68250.0,68249.0,0.13962961]
[1729341619229,0.06613,68250.0,68249.0,0.06006502]
[1729341620322,0.06613,68250.0,68249.0,0.42086502]
[1729341620524,0.06613,68250.0,68249.0,0.06006502]
[1729341627036,0.06613,68250.0,68249.0,0.22731388]
[1729341627830,0.06613,68250.0,68249.0,0.13969762]
[1729341628028,0.06613,68250.0,68249.0,0.19421736]
[1729341628341,0.06613,68250.0,68249.0,0.10659762]
[1729341629442,0.06613,68250.0,68249.0,0.19421736]
[1729341629742,0.06613,68250.0,68249.0,0.10659762]
[1729341630539,0.06613,68250.0,68249.0,0.19421736]
[1729341632332,0.06613,68250.0,68249.0,0.10659762]
[1729341634233,0.12134442,68250.0,68249.0,0.02696502]
[1729341634442,0.065934,68247.0,68243.0,0.3608]
[1729341634742,0.0002,68244.0,68243.0,0.3608]
[1729341635044,0.0002,68244.0,68243.0,0.9608]
[1729341635648,0.066136,68244.0,68243.0,0.9608]
[1729341636443,0.066136,68244.0,68243.0,0.3608]
[1729341638840,0.066136,68244.0,68242.0,0.3608]
[1729341638841,0.065937,68243.0,68242.0,0.3608]
[1729341639142,0.066137,68243.0,68242.0,0.3608]
[1729341639341,0.066137,68243.0,68242.0,0.9608]
[1729341641145,0.066137,68243.0,68242.0,0.6]
[1729341641343,0.066137,68243.0,68242.0,0.3608]
[1729341642240,0.066137,68243.0,68242.0,0.53549161]
[1729341643946,0.066137,68243.0,68242.0,0.53547566]
[1729341644147,0.066137,68243.0,68242.0,0.44049647]
[1729341644540,0.066137,68243.0,68242.0,0.53547231]
[1729341646043,0.066137,68243.0,68242.0,0.17467231]
[1729341646344,0.066137,68243.0,68242.0,0.44049647]
[1729341646745,0.066137,68243.0,68242.0,0.53547773]
[1729341647945,0.066137,68243.0,68242.0,0.44049647]
[1729341648945,0.066137,68243.0,68242.0,0.07969647]
[1729341649251,0.066137,68243.0,68241.0,0.3608]
[1729341649252,0.065938,68242.0,68241.0,0.3608]
[1729341649444,0.066138,68242.0,68241.0,0.3608]
[1729341654452,0.065939,68241.0,68240.0,0.57361876]
[1729341654652,0.066139,68241.0,68240.0,0.57361876]
[1729341654850,0.066139,68241.0,68240.0,1.17361876]
[1729341656051,0.066139,68241.0,68240.0,0.81281876]
[1729341656242,0.066139,68241.0,68240.0,0.23417546]
[1729341657053,0.066139,68241.0,68240.0,0.83417546]
[1729341657259,0.066139,68241.0,68240.0,0.23417546]
[1729341661753,0.066139,68241.0,68240.0,0.32930388]
[1729341662056,0.066139,68241.0,68240.0,0.23417546]
[1729341662454,0.066139,68241.0,68240.0,0.3292863]
[1729341664258,0.066139,68241.0,68240.0,0.15439067]
[1729341665760,0.066139,68241.0,68240.0,0.51519067]
[1729341666857,0.066139,68241.0,68240.0,0.48409067]
[1729341669061,0.066139,68241.0,68240.0,0.54251114]
[1729341669265,0.066139,68241.0,68240.0,0.54249839]
[1729341669659,0.066139,68241.0,68240.0,0.48409067]
[1729341670065,0.066139,68241.0,68240.0,0.54249846]
[1729341670457,0.066139,68241.0,68240.0,0.48409067]
[1729341670658,0.066139,68241.0,68240.0,0.54249873]
[1729341671356,0.066139,68241.0,68240.0,0.65876137]
[1729341671758,0.066139,68241.0,68240.0,0.65865158]
[1729341674464,0.0002,68241.0,68240.0,0.65865158]
[1729341681265,0.0002,68241.0,68240.0,0.48409067]
[1729341681565,0.0002,68241.0,68240.0,0.65816099]
[1729341683069,0.0002,68241.0,68240.0,0.76806204]
[1729341684465,0.0002,68241.0,68240.0,0.65816099]
[1729341686162,0.0002,68241.0,68240.0,0.65805203]
[1729341686470,0.0002,68241.0,68240.0,0.54251227]
[1729341688270,0.0002,68241.0,68240.0,0.48409067]
[1729341689261,0.0002,68241.0,68240.0,0.54252005]
[1729341689466,0.0002,68241.0,68240.0,0.7027213]
[1729341694508,0.0002,68241.0,68240.0,0.87648635]
[1729341695696,0.0002,68241.0,68240.0,0.87530819]
[1729341700491,0.0002,68241.0,68240.0,0.8746033]
[1729341700901,0.0002,68241.0,68240.0,0.8430033]
[1729341704294,0.0002,68241.0,68240.0,0.94524102]
[1729341705000,0.0002,68241.0,68240.0,0.8430033]
[1729341705202,0.0002,68241.0,68240.0,0.94524102]
[1729341705407,0.0002,68241.0,68240.0,1.05388091]
[1729341706392,0.0002,68241.0,68240.0,0.84307731]
[1729341709497,0.0002,68241.0,68240.0,0.6711213]
[1729341710305,0.0002,68241.0,68240.0,0.3103213]
[1729341710507,0.0002,68241.0,68240.0,0.6711213]
[1729341715703,0.0002,68241.0,68240.0,0.3103213]
[1729341715905,0.0002,68241.0,68240.0,0.6711213]
[1729341716506,0.0002,68241.0,68240.0,0.8429439]
[1729341719805,0.0002,68241.0,68240.0,0.84296752]
[1729341720611,0.0002,68241.0,68240.0,0.74954185]
[1729341720819,0.0002,68241.0,68240.0,0.84301614]
[1729341722913,0.0002,68241.0,68240.0,0.48221614]
[1729341723114,0.0002,68241.0,68240.0,0.84301614]
[1729341723518,0.0002,68241.0,68240.0,0.84232738]
[1729341724521,0.066139,68241.0,68240.0,0.6711213]
[1729341725313,0.066139,68241.0,68240.0,0.3103213]
[1729341725818,0.066139,68241.0,68240.0,0.6711213]
[1729341726024,0.066139,68241.0,68240.0,0.3103213]
[1729341726218,0.066139,68241.0,68240.0,0.6711213]
[1729341731214,0.066139,68241.0,68240.0,0.3103213]
[1729341731410,0.066139,68241.0,68240.0,0.6711213]
[1729341731611,0.066139,68241.0,68240.0,0.84233372]
[1729341732419,0.066139,68241.0,68240.0,1.05271191]
[1729341732827,0.066139,68241.0,68240.0,0.69191191]
[1729341733028,0.066139,68241.0,68240.0,1.05271191]
[1729341734328,0.066139,68241.0,68240.0,0.69191191]
[1729341734730,0.066139,68241.0,68240.0,1.05271191]
[1729341734926,0.066139,68241.0,68240.0,0.69191191]
[1729341735132,0.066139,68241.0,68240.0,1.05271191]
[1729341735833,0.066139,68241.0,68240.0,0.69191191]
[1729341736024,0.066139,68241.0,68240.0,1.05271191]
[1729341737125,0.066139,68241.0,68240.0,0.95043159]
[1729341737332,0.066139,68241.0,68240.0,0.58963159]
[1729341737735,0.066139,68241.0,68240.0,0.95130264]
[1729341738329,0.066139,68241.0,68240.0,0.59050264]
[1729341738925,0.066139,68241.0,68240.0,0.95130264]
[1729341739331,0.066139,68241.0,68240.0,0.59050264]
[1729341739635,0.066139,68241.0,68240.0,0.6711213]
[1729341741329,0.066139,68241.0,68240.0,0.45249067]
[1729341741728,0.066139,68241.0,68240.0,0.09169067]
[1729341741928,0.066139,68241.0,68240.0,0.45249067]
[1729341742424,0.066139,68241.0,68240.0,0.09169067]
[1729341742626,0.066139,68241.0,68240.0,0.45249067]
[1729341743333,0.066139,68241.0,68240.0,0.09169067]
[1729341743533,0.066139,68241.0,68240.0,0.45249067]
[1729341743938,0.0002,68241.0,68240.0,0.45249067]
[1729341746337,0.0002,68241.0,68240.0,0.51093729]
[1729341746735,0.0002,68241.0,68240.0,0.73250364]
[1729341747035,0.0002,68241.0,68240.0,1.09330364]
[1729341747234,0.0002,68241.0,68240.0,1.01484646]
[1729341747435,0.0002,68241.0,68240.0,1.09309366]
[1729341748026,0.0002,68241.0,68240.0,0.37149366]
[1729341748238,0.0002,68241.0,68240.0,1.09309366]
[1729341751539,0.0002,68241.0,68240.0,0.37149366]
[1729341751735,0.0002,68241.0,68240.0,1.09309366]
[1729341752144,0.0002,68241.0,68240.0,0.37149366]
[1729341752329,0.0002,68241.0,68240.0,1.09309366]
[1729341753231,0.0002,68241.0,68240.0,0.73229366]
[1729341754736,0.0002,68241.0,68240.0,0.37149366]
[1729341754937,0.0002,68241.0,68240.0,0.73229366]
[1729341755438,0.0002,68241.0,68240.0,0.37149366]
[1729341756040,0.0002,68241.0,68240.0,0.73229366]
[1729341756229,0.0002,68241.0,68240.0,0.37149366]
[1729341756425,0.0002,68241.0,68240.0,0.73229366]
[1729341756929,0.0002,68241.0,68240.0,0.37149366]
[1729341757131,0.0002,68241.0,68240.0,0.73229366]
[1729341757334,0.0002,68241.0,68240.0,0.37149366]
[1729341757837,0.0002,68241.0,68240.0,0.73229366]
[1729341758237,0.0002,68241.0,68240.0,0.37149366]
[1729341758440,0.0002,68241.0,68240.0,0.73229366]
[1729341759840,0.0002,68241.0,68240.0,0.73285769]